[Event "Titled Tuesday Blitz May 10 Early 2022"]
[White "Derraugh, Geordie"]
[Black "Vasquez Schroeder, Rodrigo"]
[WhiteFideId "2603950"]
[BlackFideId "3400042"]
[WhiteElo "2116"]
[BlackElo "2567"]
[Result "1-0"]
[Round "01"]
[TimeControl "180+1"]
[Date "2022.05.10"]
[WhiteClock "0:00:16"]
[BlackClock "0:00:29"]

1. e4 {[%clk 0:02:59]}  c5 {[%clk 0:03:00]} 2. c3 {[%clk 0:02:59]}  Nf6 {[%clk 0:02:59]} 3. e5 {[%clk 0:02:59]}  Nd5 {[%clk 0:03:00]} 4. d4 {[%clk 0:02:59]}  cxd4 {[%clk 0:03:00]} 5. cxd4 {[%clk 0:02:59]}  d6 {[%clk 0:03:00]} 6. Nf3 {[%clk 0:02:58]}  Nc6 {[%clk 0:02:59]} 7. exd6 {[%clk 0:02:54]}  Qxd6 {[%clk 0:02:59]} 8. Bd3 {[%clk 0:02:54]}  Bg4 {[%clk 0:02:58]} 9. Be3 {[%clk 0:02:37]}  e6 {[%clk 0:02:47]} 10. O-O {[%clk 0:02:37]}  Be7 {[%clk 0:02:45]} 11. Nc3 {[%clk 0:02:36]}  O-O {[%clk 0:02:45]} 12. Ne4 {[%clk 0:02:34]}  Qc7 {[%clk 0:02:39]} 13. Rc1 {[%clk 0:02:34]}  Qb6 {[%clk 0:02:39]} 14. Nc5 {[%clk 0:02:13]}  Rfd8 {[%clk 0:02:32]} 15. b3 {[%clk 0:01:58]}  Rac8 {[%clk 0:02:20]} 16. h3 {[%clk 0:01:41]}  Bh5 {[%clk 0:02:17]} 17. Bxh7+ {[%clk 0:01:31]}  Kh8 {[%clk 0:01:53]} 18. Be4 {[%clk 0:01:26]}  Nf6 {[%clk 0:01:24]} 19. Bb1 {[%clk 0:01:12]}  Nxd4 {[%clk 0:01:07]} 20. Bxd4 {[%clk 0:00:57]}  Bxc5 {[%clk 0:01:07]} 21. Rxc5 {[%clk 0:00:49]}  Rxc5 {[%clk 0:00:58]} 22. Bxc5 {[%clk 0:00:44]}  Rxd1 {[%clk 0:00:57]} 23. Bxb6 {[%clk 0:00:44]}  Rxf1+ {[%clk 0:00:38]} 24. Kxf1 {[%clk 0:00:45]}  axb6 {[%clk 0:00:38]} 25. g4 {[%clk 0:00:43]}  Bg6 {[%clk 0:00:37]} 26. Bxg6 {[%clk 0:00:40]}  fxg6 {[%clk 0:00:38]} 27. Ng5 {[%clk 0:00:33]}  e5 {[%clk 0:00:38]} 28. Nf7+ {[%clk 0:00:33]}  Kh7 {[%clk 0:00:37]} 29. Nxe5 {[%clk 0:00:33]}  g5 {[%clk 0:00:37]} 30. Nc4 {[%clk 0:00:31]}  Nd5 {[%clk 0:00:37]} 31. Nd6 {[%clk 0:00:30]}  Nf4 {[%clk 0:00:35]} 32. Nxb7 {[%clk 0:00:29]}  Nxh3 {[%clk 0:00:36]} 33. Nd6 {[%clk 0:00:26]}  Nf4 {[%clk 0:00:35]} 34. Nc4 {[%clk 0:00:26]}  Nd5 {[%clk 0:00:35]} 35. Ne3 {[%clk 0:00:19]}  Nc3 {[%clk 0:00:31]} 36. a4 {[%clk 0:00:19]}  Kg6 {[%clk 0:00:31]} 37. Nc4 {[%clk 0:00:19]}  Nd5 {[%clk 0:00:31]} 38. Ke2 {[%clk 0:00:19]}  Kf6 {[%clk 0:00:30]} 39. Kf3 {[%clk 0:00:18]}  Ke6 {[%clk 0:00:29]} 40. Ke4 {[%clk 0:00:19]}  Nf6+ {[%clk 0:00:28]} 41. Kf3 {[%clk 0:00:19]}  Nd5 {[%clk 0:00:28]} 42. Kg3 {[%clk 0:00:19]}  Kd7 {[%clk 0:00:25]} 43. Ne3 {[%clk 0:00:18]}  Nc3 {[%clk 0:00:21]} 44. Nf5 {[%clk 0:00:18]}  g6 {[%clk 0:00:21]} 45. Nd4 {[%clk 0:00:18]}  Kd6 {[%clk 0:00:19]} 46. Nb5+ {[%clk 0:00:17]}  Nxb5 {[%clk 0:00:18]} 47. axb5 {[%clk 0:00:18]}  Kc5 {[%clk 0:00:19]} 48. f4 {[%clk 0:00:18]}  gxf4+ {[%clk 0:00:19]} 49. Kxf4 {[%clk 0:00:18]}  Kxb5 {[%clk 0:00:19]} 50. Kg5 {[%clk 0:00:19]}  Kb4 {[%clk 0:00:20]} 51. Kxg6 {[%clk 0:00:19]}  Kxb3 {[%clk 0:00:21]} 52. Kf6 {[%clk 0:00:18]}  b5 {[%clk 0:00:22]} 53. g5 {[%clk 0:00:19]}  Kc2 {[%clk 0:00:23]} 54. g6 {[%clk 0:00:20]}  b4 {[%clk 0:00:23]} 55. g7 {[%clk 0:00:20]}  b3 {[%clk 0:00:24]} 56. g8=Q {[%clk 0:00:21]}  b2 {[%clk 0:00:25]} 57. Qc4+ {[%clk 0:00:21]}  Kb1 {[%clk 0:00:25]} 58. Qb3 {[%clk 0:00:20]}  Ka1 {[%clk 0:00:26]} 59. Qa3+ {[%clk 0:00:20]}  Kb1 {[%clk 0:00:25]} 60. Ke5 {[%clk 0:00:21]}  Kc2 {[%clk 0:00:26]} 61. Qa2 {[%clk 0:00:21]}  Kc1 {[%clk 0:00:26]} 62. Qc4+ {[%clk 0:00:21]}  Kd2 {[%clk 0:00:27]} 63. Qb3 {[%clk 0:00:21]}  Kc1 {[%clk 0:00:27]} 64. Qc3+ {[%clk 0:00:21]}  Kb1 {[%clk 0:00:27]} 65. Kd4 {[%clk 0:00:22]}  Ka2 {[%clk 0:00:28]} 66. Qa5+ {[%clk 0:00:21]}  Kb3 {[%clk 0:00:29]} 67. Qb5+ {[%clk 0:00:21]}  Kc2 {[%clk 0:00:29]} 68. Qc4+ {[%clk 0:00:20]}  Kd2 {[%clk 0:00:29]} 69. Qb3 {[%clk 0:00:19]}  Kc1 {[%clk 0:00:29]} 70. Qc3+ {[%clk 0:00:19]}  Kb1 {[%clk 0:00:28]} 71. Kd3 {[%clk 0:00:18]}  Ka2 {[%clk 0:00:28]} 72. Qa5+ {[%clk 0:00:17]}  Kb3 {[%clk 0:00:29]} 73. Qb5+ {[%clk 0:00:16]}  Ka2 {[%clk 0:00:29]} 74. Kc2 {[%clk 0:00:16]} 1-0


[Site "https://www.chess.com"]

[Event "Titled Tuesday Blitz May 10 Early 2022"]
[White "Devaev, Alexander"]
[Black "Ohanyan, Emin"]
[WhiteFideId "4169395"]
[BlackFideId "13312022"]
[WhiteElo "2185"]
[BlackElo "1927"]
[Result "1-0"]
[Round "01"]
[TimeControl "180+1"]
[Date "2022.05.11"]
[WhiteClock "0:00:09"]
[BlackClock "0:00:01"]

1. Nf3 {[%clk 0:02:52]}  d5 {[%clk 0:02:57]} 2. d4 {[%clk 0:02:51]}  Nf6 {[%clk 0:02:58]} 3. c4 {[%clk 0:02:52]}  e6 {[%clk 0:02:55]} 4. cxd5 {[%clk 0:02:51]}  exd5 {[%clk 0:02:55]} 5. Nc3 {[%clk 0:02:52]}  c6 {[%clk 0:02:54]} 6. Bg5 {[%clk 0:02:53]}  Be7 {[%clk 0:02:54]} 7. Bxf6 {[%clk 0:02:53]}  Bxf6 {[%clk 0:02:54]} 8. e3 {[%clk 0:02:54]}  O-O {[%clk 0:02:55]} 9. Bd3 {[%clk 0:02:55]}  g6 {[%clk 0:02:55]} 10. Qc2 {[%clk 0:02:54]}  Nd7 {[%clk 0:02:55]} 11. h4 {[%clk 0:02:54]}  h5 {[%clk 0:02:54]} 12. O-O-O {[%clk 0:02:48]}  Bg7 {[%clk 0:02:52]} 13. Kb1 {[%clk 0:02:48]}  Nf6 {[%clk 0:02:52]} 14. Ne5 {[%clk 0:02:47]}  Ng4 {[%clk 0:02:53]} 15. Nf3 {[%clk 0:02:41]}  Re8 {[%clk 0:02:50]} 16. Rdf1 {[%clk 0:02:35]}  Be6 {[%clk 0:02:49]} 17. Ne2 {[%clk 0:02:36]}  Rc8 {[%clk 0:02:47]} 18. Nf4 {[%clk 0:02:36]}  b6 {[%clk 0:02:47]} 19. Ng5 {[%clk 0:02:30]}  Bd7 {[%clk 0:02:47]} 20. Nxf7 {[%clk 0:02:08]}  Kxf7 {[%clk 0:02:40]} 21. Bxg6+ {[%clk 0:02:06]}  Kg8 {[%clk 0:02:16]} 22. Nxh5 {[%clk 0:02:02]}  Nf6 {[%clk 0:02:07]} 23. Nxg7 {[%clk 0:01:55]}  Kxg7 {[%clk 0:01:40]} 24. Bxe8 {[%clk 0:01:51]}  Qxe8 {[%clk 0:01:30]} 25. Re1 {[%clk 0:01:49]}  c5 {[%clk 0:00:56]} 26. dxc5 {[%clk 0:01:39]}  Rxc5 {[%clk 0:00:49]} 27. Qd3 {[%clk 0:01:16]}  Qe4 {[%clk 0:00:43]} 28. Qxe4 {[%clk 0:01:09]}  dxe4 {[%clk 0:00:28]} 29. Rc1 {[%clk 0:00:47]}  Rf5 {[%clk 0:00:23]} 30. Rc7 {[%clk 0:00:34]}  Kg6 {[%clk 0:00:11]} 31. h5+ {[%clk 0:00:27]}  Kh6 {[%clk 0:00:11]} 32. g4 {[%clk 0:00:20]}  Rxf2 {[%clk 0:00:11]} 33. g5+ {[%clk 0:00:21]}  Kxg5 {[%clk 0:00:12]} 34. h6 {[%clk 0:00:21]}  Bf5 {[%clk 0:00:02]} 35. Rg7+ {[%clk 0:00:21]}  Bg6 {[%clk 0:00:03]} 36. Rg1+ {[%clk 0:00:18]}  Ng4 {[%clk 0:00:03]} 37. Rxg4+ {[%clk 0:00:10]}  Kxg4 {[%clk 0:00:03]} 38. Rxg6+ {[%clk 0:00:10]}  Kf5 {[%clk 0:00:04]} 39. Rg7 {[%clk 0:00:10]}  Rh2 {[%clk 0:00:03]} 40. h7 {[%clk 0:00:10]}  a5 {[%clk 0:00:03]} 41. Rb7 {[%clk 0:00:11]}  Kg4 {[%clk 0:00:03]} 42. Rf7 {[%clk 0:00:10]}  Kg3 {[%clk 0:00:02]} 43. a4 {[%clk 0:00:11]}  Kg4 {[%clk 0:00:01]} 44. Ka2 {[%clk 0:00:11]}  Kg5 {[%clk 0:00:01]} 45. Ka3 {[%clk 0:00:11]}  Kg6 {[%clk 0:00:02]} 46. Rb7 {[%clk 0:00:11]}  Rh3 {[%clk 0:00:02]} 47. b3 {[%clk 0:00:11]}  Kf5 {[%clk 0:00:01]} 48. Kb2 {[%clk 0:00:11]}  Ke5 {[%clk 0:00:01]} 49. Kc3 {[%clk 0:00:11]}  Rxe3+ {[%clk 0:00:02]} 50. Kc4 {[%clk 0:00:12]}  Rh3 {[%clk 0:00:02]} 51. Kb5 {[%clk 0:00:12]}  e3 {[%clk 0:00:02]} 52. Re7+ {[%clk 0:00:11]}  Kd6 {[%clk 0:00:02]} 53. Rxe3 {[%clk 0:00:11]}  Rh5+ {[%clk 0:00:02]} 54. Kxb6 {[%clk 0:00:11]}  Rxh7 {[%clk 0:00:03]} 55. Rd3+ {[%clk 0:00:12]}  Ke5 {[%clk 0:00:03]} 56. Kxa5 {[%clk 0:00:12]}  Ke4 {[%clk 0:00:04]} 57. Rd6 {[%clk 0:00:11]}  Rb7 {[%clk 0:00:04]} 58. Rb6 {[%clk 0:00:12]}  Rc7 {[%clk 0:00:04]} 59. Kb4 {[%clk 0:00:12]}  Kd5 {[%clk 0:00:04]} 60. Rb5+ {[%clk 0:00:13]}  Kd6 {[%clk 0:00:05]} 61. a5 {[%clk 0:00:14]}  Rc1 {[%clk 0:00:05]} 62. Rb6+ {[%clk 0:00:14]}  Kc7 {[%clk 0:00:06]} 63. Kb5 {[%clk 0:00:15]}  Rh1 {[%clk 0:00:07]} 64. b4 {[%clk 0:00:16]}  Rh5+ {[%clk 0:00:07]} 65. Ka4 {[%clk 0:00:16]}  Rh1 {[%clk 0:00:08]} 66. Rg6 {[%clk 0:00:17]}  Kb7 {[%clk 0:00:08]} 67. Rg7+ {[%clk 0:00:16]}  Kc6 {[%clk 0:00:07]} 68. Rg6+ {[%clk 0:00:17]}  Kb7 {[%clk 0:00:07]} 69. Rg5 {[%clk 0:00:17]}  Kc6 {[%clk 0:00:05]} 70. b5+ {[%clk 0:00:15]}  Kd6 {[%clk 0:00:06]} 71. a6 {[%clk 0:00:13]}  Kc7 {[%clk 0:00:06]} 72. Rg7+ {[%clk 0:00:13]}  Kb6 {[%clk 0:00:06]} 73. Rg6+ {[%clk 0:00:13]}  Ka7 {[%clk 0:00:05]} 74. Rg5 {[%clk 0:00:13]}  Ra1+ {[%clk 0:00:04]} 75. Kb4 {[%clk 0:00:13]}  Rb1+ {[%clk 0:00:04]} 76. Kc5 {[%clk 0:00:13]}  Rc1+ {[%clk 0:00:05]} 77. Kd6 {[%clk 0:00:13]}  Kb6 {[%clk 0:00:05]} 78. Rd5 {[%clk 0:00:12]}  Rc8 {[%clk 0:00:03]} 79. Kd7 {[%clk 0:00:13]}  Rc7+ {[%clk 0:00:03]} 80. Kd8 {[%clk 0:00:13]}  Rh7 {[%clk 0:00:02]} 81. Kc8 {[%clk 0:00:11]}  Rh8+ {[%clk 0:00:02]} 82. Rd8 {[%clk 0:00:12]}  Rh7 {[%clk 0:00:02]} 83. Kb8 {[%clk 0:00:10]}  Rg7 {[%clk 0:00:01]} 84. a7 {[%clk 0:00:09]} 1-0


[Site "https://www.chess.com"]

[Event "Titled Tuesday Blitz May 10 Early 2022"]
[White "Wagner, Dinara"]
[Black "Niemann, Hans Moke"]
[WhiteFideId "24157570"]
[BlackFideId "2093596"]
[WhiteElo "2216"]
[BlackElo "2632"]
[Result "0-1"]
[Round "01"]
[TimeControl "180+1"]
[Date "2022.05.10"]
[WhiteClock "0:00:03"]
[BlackClock "0:01:49"]

1. d4 {[%clk 0:02:54]}  g6 {[%clk 0:03:00]} 2. c4 {[%clk 0:02:53]}  Bg7 {[%clk 0:03:01]} 3. Nf3 {[%clk 0:02:54]}  c5 {[%clk 0:03:00]} 4. d5 {[%clk 0:02:53]}  Nf6 {[%clk 0:03:00]} 5. Nc3 {[%clk 0:02:52]}  O-O {[%clk 0:03:00]} 6. g3 {[%clk 0:02:53]}  d6 {[%clk 0:03:01]} 7. Bg2 {[%clk 0:02:53]}  Bg4 {[%clk 0:02:59]} 8. O-O {[%clk 0:02:52]}  Nbd7 {[%clk 0:02:59]} 9. h3 {[%clk 0:02:38]}  Bxf3 {[%clk 0:02:59]} 10. exf3 {[%clk 0:02:38]}  Nb6 {[%clk 0:02:59]} 11. Qe2 {[%clk 0:02:37]}  Re8 {[%clk 0:02:59]} 12. f4 {[%clk 0:02:29]}  a6 {[%clk 0:02:59]} 13. Bd2 {[%clk 0:02:25]}  Qd7 {[%clk 0:02:59]} 14. b3 {[%clk 0:02:21]}  h5 {[%clk 0:02:55]} 15. Qf3 {[%clk 0:02:17]}  Qf5 {[%clk 0:02:53]} 16. Rfe1 {[%clk 0:02:14]}  Nbd7 {[%clk 0:02:53]} 17. Rac1 {[%clk 0:02:08]}  b5 {[%clk 0:02:51]} 18. cxb5 {[%clk 0:01:44]}  Nb6 {[%clk 0:02:43]} 19. bxa6 {[%clk 0:01:22]}  Rxa6 {[%clk 0:02:44]} 20. a4 {[%clk 0:01:23]}  Qd7 {[%clk 0:02:44]} 21. Nb5 {[%clk 0:01:19]}  Nbxd5 {[%clk 0:02:42]} 22. Qd3 {[%clk 0:01:15]}  e6 {[%clk 0:02:38]} 23. Bc3 {[%clk 0:00:51]}  Nxc3 {[%clk 0:02:35]} 24. Rxc3 {[%clk 0:00:50]}  Qe7 {[%clk 0:02:33]} 25. Rcc1 {[%clk 0:00:49]}  d5 {[%clk 0:02:30]} 26. Qc2 {[%clk 0:00:36]}  Rc6 {[%clk 0:02:24]} 27. Rcd1 {[%clk 0:00:36]}  Qd8 {[%clk 0:02:23]} 28. Qd3 {[%clk 0:00:31]}  Rc8 {[%clk 0:02:21]} 29. Na7 {[%clk 0:00:30]}  Rc7 {[%clk 0:02:21]} 30. Nb5 {[%clk 0:00:30]}  Rd7 {[%clk 0:02:17]} 31. Qc2 {[%clk 0:00:30]}  Qb6 {[%clk 0:02:17]} 32. Rc1 {[%clk 0:00:29]}  Rc8 {[%clk 0:02:18]} 33. Red1 {[%clk 0:00:26]}  Ne8 {[%clk 0:02:18]} 34. b4 {[%clk 0:00:20]}  c4 {[%clk 0:02:17]} 35. Qa2 {[%clk 0:00:20]}  Nd6 {[%clk 0:02:17]} 36. Nxd6 {[%clk 0:00:10]}  Rxd6 {[%clk 0:02:18]} 37. b5 {[%clk 0:00:10]}  Ra8 {[%clk 0:02:18]} 38. Rxc4 {[%clk 0:00:07]}  Rdd8 {[%clk 0:02:10]} 39. Rcc1 {[%clk 0:00:06]}  Qxb5 {[%clk 0:02:10]} 40. axb5 {[%clk 0:00:06]}  Rxa2 {[%clk 0:02:10]} 41. Rb1 {[%clk 0:00:07]}  Rb8 {[%clk 0:02:09]} 42. Bf1 {[%clk 0:00:06]}  Bf8 {[%clk 0:02:09]} 43. Rdc1 {[%clk 0:00:06]}  Be7 {[%clk 0:02:06]} 44. b6 {[%clk 0:00:06]}  Ba3 {[%clk 0:02:05]} 45. Rc7 {[%clk 0:00:05]}  Bb2 {[%clk 0:02:02]} 46. b7 {[%clk 0:00:05]}  Kg7 {[%clk 0:02:02]} 47. Bb5 {[%clk 0:00:04]}  Bd4 {[%clk 0:02:01]} 48. Bc6 {[%clk 0:00:03]}  Bxf2+ {[%clk 0:01:59]} 49. Kh1 {[%clk 0:00:03]}  Bxg3 {[%clk 0:01:59]} 50. Rc8 {[%clk 0:00:04]}  Bxf4 {[%clk 0:01:59]} 51. Be8 {[%clk 0:00:03]}  Ra7 {[%clk 0:01:56]} 52. Bc6 {[%clk 0:00:03]}  Ra3 {[%clk 0:01:56]} 53. Rf1 {[%clk 0:00:03]}  Bd6 {[%clk 0:01:50]} 54. Be8 {[%clk 0:00:03]}  Rxh3+ {[%clk 0:01:49]} 55. Kg2 {[%clk 0:00:03]}  Rg3+ {[%clk 0:01:49]} 56. Kh1 {[%clk 0:00:03]}  Rxb7 {[%clk 0:01:49]} 0-1


[Site "https://www.chess.com"]

[Event "Titled Tuesday Blitz May 10 Early 2022"]
[White "Dorokhin, Mykhailo"]
[Black "Dardha, Daniel"]
[WhiteFideId "14114178"]
[BlackFideId "240990"]
[WhiteElo "2280"]
[BlackElo "2482"]
[Result "0-1"]
[Round "01"]
[TimeControl "180+1"]
[Date "2022.05.11"]
[WhiteClock "0:01:06"]
[BlackClock "0:00:33"]

1. d4 {[%clk 0:03:00]}  g6 {[%clk 0:02:54]} 2. h4 {[%clk 0:03:00]}  Nf6 {[%clk 0:02:53]} 3. Bg5 {[%clk 0:02:59]}  Bg7 {[%clk 0:02:52]} 4. Bxf6 {[%clk 0:02:59]}  Bxf6 {[%clk 0:02:53]} 5. h5 {[%clk 0:02:59]}  c5 {[%clk 0:02:52]} 6. c3 {[%clk 0:02:59]}  Qb6 {[%clk 0:02:49]} 7. Nf3 {[%clk 0:02:41]}  Qxb2 {[%clk 0:02:44]} 8. Nbd2 {[%clk 0:02:41]}  Nc6 {[%clk 0:02:43]} 9. e3 {[%clk 0:02:34]}  d5 {[%clk 0:02:26]} 10. Rb1 {[%clk 0:02:16]}  Qxa2 {[%clk 0:02:18]} 11. Bd3 {[%clk 0:02:14]}  c4 {[%clk 0:02:18]} 12. Be2 {[%clk 0:02:00]}  Qa5 {[%clk 0:02:17]} 13. Qc1 {[%clk 0:01:55]}  b5 {[%clk 0:02:09]} 14. e4 {[%clk 0:01:54]}  dxe4 {[%clk 0:02:03]} 15. Nxe4 {[%clk 0:01:53]}  Bf5 {[%clk 0:02:01]} 16. Nxf6+ {[%clk 0:01:50]}  exf6 {[%clk 0:02:02]} 17. Ra1 {[%clk 0:01:49]}  Qc7 {[%clk 0:01:58]} 18. hxg6 {[%clk 0:01:47]}  Bxg6 {[%clk 0:01:57]} 19. Nh4 {[%clk 0:01:41]}  O-O {[%clk 0:01:37]} 20. Qh6 {[%clk 0:01:40]}  Rfe8 {[%clk 0:01:29]} 21. Kf1 {[%clk 0:01:39]}  Rxe2 {[%clk 0:01:15]} 22. Kxe2 {[%clk 0:01:38]}  Bd3+ {[%clk 0:01:07]} 23. Kd2 {[%clk 0:01:33]}  b4 {[%clk 0:01:07]} 24. Rh3 {[%clk 0:01:10]}  Re8 {[%clk 0:00:41]} 25. Rxd3 {[%clk 0:01:08]}  cxd3 {[%clk 0:00:32]} 26. Nf5 {[%clk 0:01:06]}  bxc3+ {[%clk 0:00:32]} 27. Kxd3 {[%clk 0:01:06]}  Nb4# {[%clk 0:00:33]} 0-1


[Site "https://www.chess.com"]

[Event "Titled Tuesday Blitz May 10 Early 2022"]
[White "Dubov, Daniil"]
[Black "Hamley, Ryan"]
[WhiteFideId "24126055"]
[BlackFideId "30959497"]
[WhiteElo "2791"]
[BlackElo "2525"]
[Result "1-0"]
[Round "01"]
[TimeControl "180+1"]
[Date "2022.05.10"]
[WhiteClock "0:00:38"]
[BlackClock "0:00:01"]

1. d4 {[%clk 0:02:59]}  Nf6 {[%clk 0:02:54]} 2. Nf3 {[%clk 0:02:58]}  e6 {[%clk 0:02:54]} 3. c4 {[%clk 0:02:58]}  d5 {[%clk 0:02:55]} 4. g3 {[%clk 0:02:57]}  Be7 {[%clk 0:02:55]} 5. Bg2 {[%clk 0:02:57]}  O-O {[%clk 0:02:55]} 6. O-O {[%clk 0:02:58]}  dxc4 {[%clk 0:02:54]} 7. Qc2 {[%clk 0:02:57]}  b5 {[%clk 0:02:52]} 8. Ne5 {[%clk 0:02:49]}  c6 {[%clk 0:02:13]} 9. b3 {[%clk 0:02:42]}  cxb3 {[%clk 0:02:06]} 10. axb3 {[%clk 0:02:42]}  Bb7 {[%clk 0:02:05]} 11. Rd1 {[%clk 0:02:40]}  Nfd7 {[%clk 0:01:48]} 12. Nd3 {[%clk 0:02:38]}  Na6 {[%clk 0:01:45]} 13. Nc3 {[%clk 0:02:36]}  Rc8 {[%clk 0:01:36]} 14. Ne4 {[%clk 0:02:24]}  Qb6 {[%clk 0:00:43]} 15. Ndc5 {[%clk 0:02:09]}  Naxc5 {[%clk 0:00:29]} 16. dxc5 {[%clk 0:02:10]}  Qc7 {[%clk 0:00:15]} 17. Rxa7 {[%clk 0:02:06]}  Ra8 {[%clk 0:00:16]} 18. Rxa8 {[%clk 0:02:05]}  Rxa8 {[%clk 0:00:16]} 19. Bg5 {[%clk 0:01:45]}  Bxg5 {[%clk 0:00:12]} 20. Nxg5 {[%clk 0:01:44]}  Nf6 {[%clk 0:00:13]} 21. h4 {[%clk 0:01:29]}  h6 {[%clk 0:00:13]} 22. Ne4 {[%clk 0:01:28]}  Nd5 {[%clk 0:00:11]} 23. Nd6 {[%clk 0:01:26]}  Qe7 {[%clk 0:00:08]} 24. e4 {[%clk 0:01:17]}  Nf6 {[%clk 0:00:08]} 25. b4 {[%clk 0:01:15]}  Ra4 {[%clk 0:00:08]} 26. Qd2 {[%clk 0:01:11]}  Ne8 {[%clk 0:00:05]} 27. e5 {[%clk 0:01:05]}  Ba8 {[%clk 0:00:03]} 28. Nxe8 {[%clk 0:00:58]}  Qxe8 {[%clk 0:00:04]} 29. Be4 {[%clk 0:00:57]}  Ra7 {[%clk 0:00:01]} 30. Qd8 {[%clk 0:00:50]}  Kf8 {[%clk 0:00:01]} 31. Qb6 {[%clk 0:00:45]}  Rd7 {[%clk 0:00:01]} 32. Rd6 {[%clk 0:00:44]}  Rxd6 {[%clk 0:00:01]} 33. exd6 {[%clk 0:00:39]}  f6 {[%clk 0:00:01]} 34. Qc7 {[%clk 0:00:38]} 1-0


[Site "https://www.chess.com"]

[Event "Titled Tuesday Blitz May 10 Early 2022"]
[White "FGHSMN"]
[Black "Shashikant, Kutwal"]
[BlackFideId "5006520"]
[WhiteElo "2758"]
[BlackElo "2321"]
[Result "1-0"]
[Round "01"]
[TimeControl "180+1"]
[Date "2022.05.11"]
[WhiteClock "0:00:34"]
[BlackClock "0:00:03"]

1. c4 {[%clk 0:03:00]}  e5 {[%clk 0:02:59]} 2. Nf3 {[%clk 0:02:57]}  Nc6 {[%clk 0:02:55]} 3. d4 {[%clk 0:02:57]}  exd4 {[%clk 0:02:50]} 4. Nxd4 {[%clk 0:02:58]}  Nf6 {[%clk 0:02:50]} 5. Nxc6 {[%clk 0:02:57]}  dxc6 {[%clk 0:02:51]} 6. Qxd8+ {[%clk 0:02:54]}  Kxd8 {[%clk 0:02:52]} 7. Bg5 {[%clk 0:02:54]}  Bb4+ {[%clk 0:02:51]} 8. Nd2 {[%clk 0:02:53]}  Ke7 {[%clk 0:02:50]} 9. O-O-O {[%clk 0:02:52]}  h6 {[%clk 0:02:49]} 10. Bh4 {[%clk 0:02:48]}  g5 {[%clk 0:02:47]} 11. Bg3 {[%clk 0:02:49]}  Bd6 {[%clk 0:02:47]} 12. e4 {[%clk 0:02:42]}  Bxg3 {[%clk 0:02:28]} 13. hxg3 {[%clk 0:02:43]}  Ng4 {[%clk 0:02:27]} 14. f3 {[%clk 0:02:35]}  Nf2 {[%clk 0:02:26]} 15. Be2 {[%clk 0:02:33]}  Nxh1 {[%clk 0:02:26]} 16. Rxh1 {[%clk 0:02:33]}  Be6 {[%clk 0:02:25]} 17. g4 {[%clk 0:02:33]}  c5 {[%clk 0:02:22]} 18. Nf1 {[%clk 0:02:33]}  Rad8 {[%clk 0:02:20]} 19. Ne3 {[%clk 0:02:33]}  c6 {[%clk 0:02:19]} 20. g3 {[%clk 0:02:32]}  f6 {[%clk 0:02:18]} 21. Kc2 {[%clk 0:02:31]}  Rd4 {[%clk 0:02:17]} 22. Kc3 {[%clk 0:02:29]}  a6 {[%clk 0:02:13]} 23. b3 {[%clk 0:02:19]}  b5 {[%clk 0:02:13]} 24. Nc2 {[%clk 0:02:16]}  b4+ {[%clk 0:02:12]} 25. Kb2 {[%clk 0:02:15]}  Rd2 {[%clk 0:02:12]} 26. Rh2 {[%clk 0:02:13]}  Rhd8 {[%clk 0:01:51]} 27. Kb1 {[%clk 0:02:10]}  h5 {[%clk 0:01:42]} 28. gxh5 {[%clk 0:02:07]}  f5 {[%clk 0:01:42]} 29. Ne3 {[%clk 0:01:54]}  fxe4 {[%clk 0:01:30]} 30. fxe4 {[%clk 0:01:55]}  R8d4 {[%clk 0:01:19]} 31. h6 {[%clk 0:01:44]}  Rd8 {[%clk 0:01:08]} 32. Nf1 {[%clk 0:01:35]}  R2d4 {[%clk 0:01:06]} 33. Bf3 {[%clk 0:01:35]}  g4 {[%clk 0:01:05]} 34. Be2 {[%clk 0:01:32]}  Rxe4 {[%clk 0:01:04]} 35. h7 {[%clk 0:01:32]}  Rh8 {[%clk 0:01:04]} 36. Bd3 {[%clk 0:01:32]}  Re5 {[%clk 0:01:01]} 37. Rh6 {[%clk 0:01:25]}  Bf5 {[%clk 0:00:59]} 38. Bxf5 {[%clk 0:01:24]}  Rxf5 {[%clk 0:01:00]} 39. Ne3 {[%clk 0:01:25]}  Rf3 {[%clk 0:00:56]} 40. Nxg4 {[%clk 0:01:24]}  Rxg3 {[%clk 0:00:56]} 41. Ne5 {[%clk 0:01:24]}  Rg1+ {[%clk 0:00:33]} 42. Kc2 {[%clk 0:01:22]}  Rg2+ {[%clk 0:00:32]} 43. Kd3 {[%clk 0:01:19]}  Kf8 {[%clk 0:00:17]} 44. Rxc6 {[%clk 0:00:53]}  Rxh7 {[%clk 0:00:16]} 45. Rxa6 {[%clk 0:00:53]}  Rh3+ {[%clk 0:00:14]} 46. Ke4 {[%clk 0:00:53]}  Re2+ {[%clk 0:00:14]} 47. Kd5 {[%clk 0:00:43]}  Rh5 {[%clk 0:00:13]} 48. Re6 {[%clk 0:00:43]}  Kg7 {[%clk 0:00:09]} 49. Kd6 {[%clk 0:00:42]}  Rxa2 {[%clk 0:00:06]} 50. Re7+ {[%clk 0:00:36]}  Kf6 {[%clk 0:00:06]} 51. Nd7+ {[%clk 0:00:36]}  Kf5 {[%clk 0:00:04]} 52. Re5+ {[%clk 0:00:33]}  Kg4 {[%clk 0:00:04]} 53. Nf6+ {[%clk 0:00:33]}  Kf4 {[%clk 0:00:04]} 54. Nxh5+ {[%clk 0:00:33]}  Kg4 {[%clk 0:00:04]} 55. Kxc5 {[%clk 0:00:33]}  Ra5+ {[%clk 0:00:02]} 56. Kd4 {[%clk 0:00:34]}  Rxe5 {[%clk 0:00:02]} 57. Kxe5 {[%clk 0:00:34]}  Kxh5 {[%clk 0:00:03]} 1-0


[Site "https://www.chess.com"]